fUST/lending_fUST_20240810
["ID","MTS","AMOUNT","RATE_DAILY","PERIOD"]
[334578934,1723269041025,-446.791869,0.0001999,2]
[334578935,1723269041035,-446.791869,0.0001999,2]
[334578936,1723269041045,-446.791869,0.0001999,2]
[334578937,1723269041055,-446.791869,0.0001999,2]
[334578938,1723269041065,-151.0,0.0001999,2]
[334578939,1723269041074,-151.0,0.0001999,2]
[334578940,1723269041084,-151.0,0.0001999,2]
[334578941,1723269041096,-151.0,0.0001999,2]
[334578942,1723269041106,-196.224521,0.0001999,2]
[334578943,1723269041116,-485.943462,0.0001999,2]
[334578944,1723269041127,-485.943462,0.0001999,2]
[334578945,1723269041136,-485.943462,0.0001999,2]
[334578946,1723269041146,-485.943462,0.0001999,2]
[334578947,1723269041155,-485.943462,0.0001999,2]
[334578948,1723269041164,-485.943462,0.0001999,2]
[334578949,1723269041173,-485.943462,0.0001999,2]
[334578950,1723269041183,-485.94345824,0.0001999,2]
[334578951,1723269041192,-782.669406,0.0001999,2]
[334578952,1723269041201,-782.669406,0.0001999,2]
[334578953,1723269041211,-782.669406,0.0001999,2]
[334578954,1723269041220,-782.669406,0.0001999,2]
[334578955,1723269041229,-782.669406,0.0001999,2]
[334578956,1723269041238,-782.669406,0.0001999,2]
[334578957,1723269041247,-782.669406,0.0001999,2]
[334578958,1723269041257,-782.669412,0.0001999,2]
[334578959,1723269041266,-100854.576494,0.0001999,2]
[334578960,1723269041276,-341.089297,0.0001999,2]
[334578961,1723269041285,-341.089297,0.0001999,2]
[334578962,1723269041294,-704.637672,0.0001999,2]
[334578963,1723269041303,-704.637672,0.0001999,2]
[334578964,1723269041313,-341.089297,0.0001999,2]
[334578965,1723269041322,-341.089288,0.0001999,2]
[334578966,1723269041332,-704.637672,0.0001999,2]
[334578967,1723269041341,-704.637667,0.0001999,2]
[334578968,1723269041351,-151.0,0.0001999,2]
[334578969,1723269041367,-151.0,0.0001999,2]
[334578970,1723269041380,-506.841093,0.0001999,2]
[334578971,1723269041390,-506.841092,0.0001999,2]
[334578972,1723269041400,-158.180743,0.0001999,2]
[334578973,1723269041410,-158.180739,0.0001999,2]
[334578974,1723269041420,-151.0,0.00019998,2]
[334578975,1723269041430,-151.0,0.00019998,2]
[334578976,1723269041440,-151.0,0.00019998,2]
[334578977,1723269041449,-151.0,0.00019998,2]
[334578978,1723269041459,-151.0,0.00019998,2]
[334578979,1723269041469,-151.0,0.00019998,2]
[334578980,1723269041479,-151.0,0.00019998,2]
[334578981,1723269041489,-200.78447,0.00019998,2]
[334578982,1723269041500,-200.78447,0.00019998,2]
[334578984,1723269041511,-200.78447,0.00019998,2]
[334578985,1723269041521,-446.791869,0.00019998,2]
[334578986,1723269041531,-446.791869,0.00019998,2]
[334578987,1723269041541,-446.791869,0.00019998,2]
[334578988,1723269041552,-446.791871,0.00019998,2]
[334578989,1723269041562,-151.0,0.00019998,2]
[334578990,1723269041573,-151.0,0.00019998,2]
[334578991,1723269041583,-151.0,0.00019999,2]
[334578992,1723269041592,-259.509527,0.00019999,2]
[334578993,1723269041602,-341.692922,0.00019999,2]
[334578994,1723269041612,-341.692922,0.00019999,2]
[334578995,1723269041622,-341.692922,0.00019999,2]
[334578996,1723269041632,-341.692922,0.00019999,2]
[334578997,1723269041642,-341.692922,0.00019999,2]
[334578998,1723269041652,-341.692922,0.00019999,2]
[334578999,1723269041662,-204.617322,0.00019999,2]
[334579000,1723269041672,-151.0,0.00019999,2]
[334579001,1723269041683,-151.0,0.00019999,2]
[334579002,1723269041693,-167.078698,0.00019999,2]
[334579003,1723269041703,-222.965825,0.00019999,2]
[334579004,1723269041714,-151.0,0.00019999,2]
[334579005,1723269041725,-151.72358,0.00019999,2]
[334579006,1723269041735,-319.572301,0.00019999,2]
[334579007,1723269041745,-200.78447,0.00019999,2]
[334579008,1723269041760,-200.78447,0.00019999,2]
[334579009,1723269041771,-200.78447,0.00019999,2]
[334579010,1723269041782,-200.784475,0.00019999,2]
[334579011,1723269041792,-2602.22864022,0.0002,2]
[334579012,1723269041803,-40854.92824377,0.0002,2]
[334579013,1723269041812,-236.1786635,0.0002,2]
[334579014,1723269041823,-336.42315708,0.0002,2]
[334579015,1723269041833,-289.82418402,0.0002,2]
[334579016,1723269041843,-151.0,0.0002,2]
[334579017,1723269041853,-151.0,0.0002,2]
[334579018,1723269041868,-155.923838,0.0002,2]
[334579019,1723269041877,-341.692922,0.0002,2]
[334579020,1723269041889,-341.692922,0.0002,2]
[334579021,1723269041899,-341.692922,0.0002,2]
[334579022,1723269041909,-341.692922,0.0002,2]
[334579023,1723269041919,-341.692922,0.0002,2]
[334579024,1723269041929,-341.692922,0.0002,2]
[334579025,1723269041939,-9428.6230642,0.0002,2]
[334579026,1723269041949,-150.112233,0.0002,2]
[334579027,1723269041959,-500.0,0.00020026,2]
[334579028,1723269041969,-621.82442303,0.00020063,2]
[334579029,1723269041979,-290.18469059,0.0002007,2]
[334579030,1723269041989,-500.0,0.0002007,2]
[334579031,1723269042003,-815.61410701,0.0002007,2]
[334579032,1723269042013,-815.61410701,0.0002007,2]
[334579033,1723269042023,-815.61410701,0.0002007,2]
[334579034,1723269042034,-815.61410701,0.0002007,2]
[334579035,1723269042044,-815.61410701,0.0002007,2]
[334579036,1723269042054,-169.06065909,0.0002007,2]
[334579037,1723269042064,-815.61410701,0.0002007,2]
[334579038,1723269042074,-815.61410701,0.0002007,2]
[334579039,1723269042083,-815.61410701,0.0002007,2]
[334579040,1723269042098,-815.61410701,0.0002007,2]
[334579041,1723269042108,-815.61410701,0.0002007,2]
[334579042,1723269042118,-815.61410701,0.0002007,2]
[334579043,1723269042128,-815.61410701,0.0002007,2]
[334579044,1723269042139,-815.61410701,0.0002007,2]
[334579045,1723269042148,-815.61410701,0.0002007,2]
[334579046,1723269042158,-815.61410701,0.0002007,2]
[334579047,1723269042169,-815.61410701,0.0002007,2]
[334579048,1723269042180,-815.61410701,0.0002007,2]
[334579049,1723269042192,-815.61410701,0.0002007,2]
[334579050,1723269042203,-815.61410701,0.0002007,2]
[334579051,1723269042213,-151.0,0.00020071,2]
[334579052,1723269042223,-151.0,0.00020071,2]
[334579053,1723269042233,-341.692922,0.00020071,2]
[334579054,1723269042242,-341.692922,0.00020071,2]
[334579055,1723269042255,-500.0,0.00020163,2]
[334579056,1723269042265,-500.0,0.00020437,2]
[334579057,1723269042274,-151.0,0.00020445,2]
[334579058,1723269042284,-151.0,0.00020445,2]
[334579059,1723269042296,-341.692922,0.00020445,2]
[334579060,1723269042305,-341.692922,0.00020445,2]
[334579061,1723269042316,-1000.0,0.00020512,2]
[334579062,1723269042325,-2868.51092697,0.0002054,2]
[334579063,1723269042335,-1000.0,0.00020577,2]
[334579064,1723269042345,-242.6416,0.00020577,2]
[334579065,1723269042355,-341.692922,0.0002058,2]
[334579066,1723269042365,-341.692931,0.0002058,2]
[334579067,1723269042374,-151.0,0.000206,2]
[334579068,1723269042384,-151.0,0.000206,2]
[334579069,1723269042394,-151.0,0.00020609,2]
[334579070,1723269042403,-151.0,0.00020609,2]
[334579071,1723269042412,-202.876898,0.00020609,2]
[334579072,1723269042422,-151.0,0.00020609,2]
[334579073,1723269042432,-151.0,0.00020609,2]
[334579074,1723269042441,-151.0,0.00020609,2]
[334579075,1723269042450,-8530.96857733,0.00020609,3]
[334579076,1723269042460,-160.0,0.0002064,4]
[334579077,1723269042469,-150.0,0.00020661,2]
[334579078,1723269042478,-507.0,0.00020661,2]
[334579079,1723269042487,-1412.0,0.00020661,2]
[334579080,1723269042496,-50107.22440349,0.00020669,2]
[334579091,1723269043825,-320.06384371,0.00020669,2]
[334579092,1723269043834,-151.0,0.00020676,2]
[334579093,1723269043843,-151.0,0.00020676,2]
[334579094,1723269043852,-274.338536,0.00020676,2]
[334579095,1723269043861,-150.01,0.00020679,2]
[334579096,1723269043871,-1185.80406699,0.00020679,2]
[334579097,1723269044121,-187.75096166,0.00019979,2]
[334579098,1723269044184,-206.72571734,0.00019979,2]
[334579099,1723269044194,-303.593684,0.00019979,2]
[334579100,1723269044203,-394.476679,0.00019987,2]
[334579101,1723269044212,-394.476679,0.00019987,2]
[334579102,1723269044221,-394.476679,0.00019987,2]
[334579103,1723269044231,-244.56910377,0.00019987,2]
[334579128,1723269443571,650.41190088,0.00015954,2]
[334579129,1723269522441,155.15707348,0.00015954,2]
[334579130,1723269547488,299.3728735,0.00015954,2]
[334579131,1723269585396,157.24672089,0.00015954,2]
[334579132,1723269589641,164.465649,0.00014247,2]
[334579133,1723269595679,679.20515439,0.00015954,2]
[334579135,1723269697030,356.74503033,0.00015954,2]
[334579255,1723270232779,-199.73620278,0.00017169,2]
[334579258,1723270232791,-306.4041273,0.00018437,2]
[334579259,1723270232801,-200.0,0.00018904,2]
[334579261,1723270232811,-300.2162622,0.00018956,2]
[334579263,1723270232821,-166.666667,0.00019069,2]
[334579265,1723270232831,-154.79103211,0.00019338,2]
[334579267,1723270232843,-258.09199854,0.00019338,2]
[334579269,1723270232853,-309.38120746,0.00019338,2]
[334579271,1723270232863,-300.0,0.00019546,2]
[334579272,1723270232872,-166.666667,0.00019566,2]
[334579274,1723270232882,-194.82072888,0.00019962,2]
[334579276,1723270232891,-255.73096813,0.0002,2]
[334579279,1723270232901,-271.17458586,0.0002,2]
[334579281,1723270232911,-284.65229118,0.0002,2]
[334579284,1723270232920,-1212.29351272,0.0002,2]
[334579287,1723270232930,-337.10232538,0.0002,2]
[334579289,1723270232940,-1347.7068289,0.00020027,2]
[334579291,1723270232958,-484.80690497,0.00020027,2]
[334579293,1723270232968,-166.666667,0.00020062,2]
[334579295,1723270232978,-165.384162,0.00020089,2]
[334579297,1723270232988,-150.234115,0.00020089,2]
[334579299,1723270232997,-26.95768103,0.00020127,2]
[334579382,1723270238856,-252.75577765,0.00017269,2]
[334579384,1723270238865,-556.17303783,0.00019477,2]
[334579401,1723270245179,-10164.74876994,0.00019477,2]
[334579427,1723270258148,191.916371,0.00014247,2]
[334579453,1723270537127,189.14170276,0.00014247,2]
[334579485,1723270712597,1179.85987269,0.00015954,2]
[334579490,1723270737657,164.966513,0.00014247,2]
[334579492,1723270754514,272.43493948,0.00015954,2]
[334579493,1723270767048,158.45275921,0.00015954,2]
[334579499,1723270784174,258.97797277,0.00015954,2]
[334579500,1723270789990,261.85849557,0.00015954,2]
[334579503,1723270801973,304.90328228,0.00015954,2]
[334579524,1723271016824,155.00694989,0.00015954,2]
[334579530,1723271107951,1615.07380948,0.00015954,3]
[334579531,1723271146657,821.2808935,0.00015954,2]
[334579533,1723271157353,935.23369427,0.00015954,2]
[334579534,1723271157827,1241.3983669,0.00015954,2]
[334579535,1723271160603,183.24072787,0.00015954,2]
[334579536,1723271162854,846.11344164,0.00015954,2]
[334579537,1723271177335,188.34866886,0.00015954,2]
[334579538,1723271181612,198.29131823,0.00015954,2]
[334579539,1723271188132,256.96611593,0.00015954,2]
[334579540,1723271190473,159.73932044,0.00015954,2]
[334579541,1723271194185,154.95262481,0.00015954,2]
[334579542,1723271207826,201.61989958,0.00015954,2]
[334579543,1723271208187,154.79103211,0.00015954,2]
[334579544,1723271210667,513.84,0.00010959,2]
[334579545,1723271215076,2140.71420812,0.00015954,2]
[334579546,1723271223613,414.16414531,0.00015954,2]
[334579548,1723271278110,237.15862698,0.00015954,2]
[334579549,1723271279982,240.97809475,0.00015954,2]
[334579550,1723271283118,8989.0,0.00025,60]
[334579551,1723271353230,191.916371,0.00014247,2]
[334579595,1723271431865,-300.0,0.00016383,2]
[334579598,1723271431877,-300.0,0.00016383,2]
[334579600,1723271431887,-177.46748131,0.00016384,2]
[334579605,1723271431938,-24586.28030039,0.00016384,2]
[334579607,1723271431947,-250.387807,0.00016394,2]
[334579609,1723271431956,-163.931549,0.000166,2]
[334579611,1723271431967,-163.931549,0.00016667,2]
[334579613,1723271431977,-163.931549,0.00016733,2]
[334579615,1723271431987,-163.931549,0.000168,2]
[334579617,1723271431997,-163.931549,0.00016866,2]
[334579619,1723271432007,-163.931549,0.00016933,2]
[334579621,1723271432017,-163.931549,0.00017,2]
[334579623,1723271432026,-163.931549,0.00017066,2]
[334579625,1723271432035,-163.931549,0.00017133,2]
[334579627,1723271432045,-163.931549,0.00017199,2]
[334579628,1723271432054,-163.931549,0.00017266,2]
[334579629,1723271432064,-1991.94991085,0.00017269,2]
[334579631,1723271432073,-163.931549,0.00017332,2]
[334579634,1723271432084,-163.931549,0.00017399,2]
[334579636,1723271432093,-163.931549,0.00017465,2]
[334579638,1723271432102,-16243.91029421,0.0001784,2]
[334579640,1723271432112,-420.0,0.00017905,2]
[334579642,1723271432125,-5137.52364973,0.0001796,2]
[334579644,1723271432136,-612.37197028,0.00018,2]
[334579646,1723271432145,-1364.15976013,0.00018,2]
[334579648,1723271432154,-420.0,0.00018021,2]
[334579650,1723271432164,-35035.88795033,0.00018125,2]
[334579652,1723271432174,-35035.88795033,0.00018125,2]
[334579654,1723271432184,-5137.52364973,0.00018147,2]
[334579656,1723271432193,-485.22141634,0.00018202,2]
[334579658,1723271432203,-485.22141634,0.00018299,2]
[334579660,1723271432213,-155.923837,0.000183,2]
[334579682,1723271432434,-54778.0612139,0.00018346,2]
[334579683,1723271432448,-151.0,0.00018346,2]
[334579684,1723271432458,-151.0,0.00018346,2]
[334579685,1723271432468,-151.0,0.00018346,2]
[334579686,1723271432478,-421.465022,0.00018346,2]
[334579687,1723271432488,-421.465022,0.00018346,2]
[334579688,1723271432497,-485.22141634,0.00018396,2]
[334579689,1723271432507,-7698.8706687,0.00018447,2]
[334579690,1723271432516,-151.0,0.00018447,2]
[334579691,1723271432528,-151.0,0.00018447,2]
[334579692,1723271432539,-165.361482,0.00018447,2]
[334579693,1723271432549,-421.465022,0.00018447,2]
[334579694,1723271432560,-421.465022,0.00018447,2]
[334579696,1723271432570,-7040.12180739,0.00018489,2]
[334579698,1723271432580,-2877.6385272,0.0001852,2]
[334579700,1723271432590,-5137.52364973,0.00018529,2]
[334579703,1723271432600,-2877.6385272,0.00018543,2]
[334579705,1723271432609,-2877.6385272,0.00018567,2]
[334579707,1723271432619,-2877.6385272,0.0001859,2]
[334579709,1723271432628,-2227.10505203,0.00018629,2]
[334579711,1723271432638,-2264.92656429,0.00018629,2]
[334579713,1723271432647,-5137.52364973,0.00018637,2]
[334579715,1723271432657,-151.0,0.00018647,2]
[334579717,1723271432668,-151.0,0.00018647,2]
[334579719,1723271432678,-421.465022,0.00018647,2]
[334579721,1723271432687,-421.465022,0.00018647,2]
[334579723,1723271432697,-54778.0612139,0.00018647,2]
[334579725,1723271432707,-303.352888,0.00018657,2]
[334579727,1723271432716,-303.352888,0.00018657,2]
[334579729,1723271432727,-388.75477,0.00018657,2]
[334579731,1723271432736,-151.0,0.00018657,2]
[334579733,1723271432746,-388.75477,0.00018657,2]
[334579736,1723271432756,-151.0,0.00018657,2]
[334579738,1723271432767,-173.605182,0.00018657,2]
[334579740,1723271432777,-151.581243,0.00018657,2]
[334579742,1723271432786,-173.605182,0.00018657,2]
[334579744,1723271432795,-151.581243,0.00018657,2]
[334579746,1723271432806,-1763.49757797,0.00018657,2]
[334579748,1723271432815,-1619.46291655,0.00018657,2]
[334579750,1723271432825,-1795.90411051,0.00018667,2]
[334579752,1723271432839,-200.0,0.00018673,2]
[334579754,1723271432848,-200.0,0.00018673,2]
[334579756,1723271432860,-200.0,0.00018673,2]
[334579758,1723271432871,-151.0,0.00018685,2]
[334579760,1723271432880,-54778.0612139,0.00018686,2]
[334579762,1723271432889,-151.0,0.00018686,2]
[334579764,1723271432898,-151.0,0.00018686,2]
[334579766,1723271432910,-151.0,0.00018686,2]
[334579768,1723271432919,-151.0,0.00018686,2]
[334579770,1723271432928,-303.352888,0.00018686,2]
[334579771,1723271432938,-303.352888,0.00018686,2]
[334579772,1723271432947,-388.75477,0.00018686,2]
[334579773,1723271432956,-151.0,0.00018686,2]
[334579774,1723271432965,-388.75477,0.00018686,2]
[334579775,1723271432974,-151.0,0.00018686,2]
[334579776,1723271432984,-173.605182,0.00018686,2]
[334579777,1723271432994,-151.581243,0.00018686,2]
[334579778,1723271433004,-173.605182,0.00018686,2]
[334579779,1723271433013,-151.581243,0.00018686,2]
[334579780,1723271433024,-151.0,0.00018686,2]
[334579781,1723271433035,-151.0,0.00018686,2]
[334579782,1723271433044,-421.465022,0.00018686,2]
[334579783,1723271433054,-421.465022,0.00018686,2]
[334579784,1723271433065,-151.0,0.0001869,2]
[334579785,1723271433075,-151.0,0.0001869,2]
[334579786,1723271433084,-151.0,0.0001869,2]
[334579787,1723271433095,-109556.122428,0.0001869,2]
[334579788,1723271433105,-303.352888,0.0001869,2]
[334579789,1723271433114,-303.352888,0.0001869,2]
[334579790,1723271433123,-388.75477,0.0001869,2]
[334579792,1723271433133,-151.0,0.0001869,2]
[334579794,1723271433143,-388.75477,0.0001869,2]
[334579795,1723271433153,-151.0,0.0001869,2]
[334579796,1723271433163,-173.605182,0.0001869,2]
[334579797,1723271433173,-151.581243,0.0001869,2]
[334579798,1723271433183,-173.605182,0.0001869,2]
[334579799,1723271433193,-151.581243,0.0001869,2]
[334579800,1723271433203,-151.0,0.0001869,2]
[334579801,1723271433213,-151.0,0.0001869,2]
[334579802,1723271433224,-421.465022,0.0001869,2]
[334579803,1723271433234,-421.465022,0.0001869,2]
[334579804,1723271433244,-290.18469059,0.00018699,2]
[334579805,1723271433254,-468.34246137,0.00018699,2]
[334579806,1723271433264,-536.11235134,0.00018699,2]
[334579807,1723271433274,-536.11235134,0.00018699,2]
[334579808,1723271433283,-536.11235134,0.00018699,2]
[334579809,1723271433293,-536.11235134,0.00018699,2]
[334579810,1723271433303,-536.11235134,0.00018699,2]
[334579811,1723271433312,-536.11235134,0.00018699,2]
[334579812,1723271433322,-536.11235134,0.00018699,2]
[334579813,1723271433331,-536.11235134,0.00018699,2]
[334579814,1723271433341,-536.11235134,0.00018699,2]
[334579815,1723271433350,-536.11235134,0.00018699,2]
[334579816,1723271433360,-536.11235134,0.00018699,2]
[334579817,1723271433369,-536.11235134,0.00018699,2]
[334579818,1723271433378,-536.11235134,0.00018699,2]
[334579819,1723271433387,-536.11235134,0.00018699,2]
[334579820,1723271433397,-536.11235134,0.00018699,2]
[334579821,1723271433406,-536.11235134,0.00018699,2]
[334579822,1723271433416,-536.11235134,0.00018699,2]
[334579823,1723271433425,-536.11235134,0.00018699,2]
[334579824,1723271433435,-1275.07516688,0.00018699,2]
[334579825,1723271433445,-1275.07516688,0.00018699,2]
[334579826,1723271433454,-1275.07516688,0.00018699,2]
[334579827,1723271433464,-1275.07516688,0.00018699,2]
[334579828,1723271433473,-1275.07516688,0.00018699,2]
[334579829,1723271433483,-1275.07516688,0.00018699,2]
[334579830,1723271433492,-1275.07516688,0.00018699,2]
[334579831,1723271433501,-1275.07516688,0.00018699,2]
[334579832,1723271433511,-1275.07516688,0.00018699,2]
[334579833,1723271433520,-1275.07516688,0.00018699,2]
[334579834,1723271433529,-1275.07516688,0.00018699,2]
[334579835,1723271433539,-1573.27823008,0.00018699,2]
[334579836,1723271433548,-1573.27823008,0.00018699,2]
[334579837,1723271433557,-200.71819773,0.00018699,2]
[334579838,1723271433567,-102227.9667228,0.000187,2]
[334579839,1723271433576,-151.0,0.000187,2]
[334579840,1723271433586,-153.878618,0.000187,2]
[334579841,1723271433595,-288.414,0.000187,2]
[334579842,1723271433604,-288.414,0.000187,2]
[334579843,1723271433614,-151.0,0.000187,2]
[334579844,1723271433623,-151.0,0.000187,2]
[334579845,1723271433633,-151.0,0.000187,2]
[334579846,1723271433643,-207.286196,0.000187,2]
[334579847,1723271433652,-151.0,0.000187,2]
[334579848,1723271433661,-303.352888,0.000187,2]
[334579849,1723271433670,-303.352888,0.000187,2]
[334579850,1723271433681,-388.75477,0.000187,2]
[334579851,1723271433692,-151.0,0.000187,2]
[334579852,1723271433702,-388.75477,0.000187,2]
[334579853,1723271433712,-151.0,0.000187,2]
[334579854,1723271433721,-173.605182,0.000187,2]
[334579855,1723271433731,-151.581243,0.000187,2]
[334579856,1723271433740,-173.605182,0.000187,2]
[334579857,1723271433751,-151.581243,0.000187,2]
[334579858,1723271433763,-151.0,0.000187,2]
[334579859,1723271433772,-151.917383,0.000187,2]
[334579860,1723271433782,-421.465022,0.000187,2]
[334579861,1723271433792,-421.465022,0.000187,2]
[334579862,1723271433801,-495.05249418,0.00018773,2]
[334579863,1723271433811,-155.04924933,0.00018786,2]
[334579864,1723271433820,-155.24795442,0.00018825,2]
[334579865,1723271433833,-154.86054764,0.00018825,2]
[334579866,1723271433843,-473.26837248,0.00018899,2]
[334579867,1723271433852,-150.112233,0.000189,2]
[334579868,1723271433862,-200.0,0.00018904,2]
[334579869,1723271433871,-9113.44435855,0.00018921,2]
[334579870,1723271433880,-151.0,0.00018968,2]
[334579871,1723271433890,-152.268017,0.00018968,2]
[334579872,1723271433900,-150.0,0.00018968,2]
[334579873,1723271433913,-151.0,0.00018969,2]
[334579874,1723271433923,-288.414,0.00018969,2]
[334579875,1723271433932,-288.414,0.00018969,2]
[334579876,1723271433942,-151.0,0.00018969,2]
[334579877,1723271433951,-151.0,0.00018969,2]
[334579878,1723271433960,-601.1945502,0.00018969,2]
[334579879,1723271433969,-157.26437971,0.00018969,2]
[334579880,1723271433980,-408.19220589,0.00018976,2]
[334579881,1723271433990,-319.90937201,0.00018979,2]
[334579882,1723271434000,-644.31829074,0.00018989,2]
[334579883,1723271434010,-291.04212174,0.00018999,2]
[334579884,1723271434020,-150.112233,0.00019,2]
[334579885,1723271434030,-1000.0,0.00019,19]
[334579886,1723271434040,-3252.03480305,0.00019039,2]
[334579887,1723271434049,-151.977794,0.00019053,2]
[334579888,1723271434059,-151.0,0.00019125,2]
[334579889,1723271434069,-421.465022,0.00019125,2]
[334579890,1723271434080,-421.465022,0.00019125,2]
[334579891,1723271434089,-40242.18747115,0.00019125,2]
[334579930,1723271438114,-500.0,0.00018345,2]
[334579932,1723271438123,-179.20515439,0.00018345,2]
[334579933,1723271438219,-322.66514326,0.00018345,2]
[334579934,1723271438230,-500.0,0.00018345,2]
[334579935,1723271438242,-578.67839638,0.00018345,2]
[334579936,1723271438251,-500.0,0.00018345,2]
[334579937,1723271438261,-500.0,0.00018345,2]
[334579938,1723271438271,-500.0,0.00018345,2]
[334579939,1723271438281,-500.0,0.00018345,2]
[334579940,1723271438290,-500.0,0.00018345,2]
[334579941,1723271438301,-500.0,0.00018345,2]
[334579942,1723271438310,-500.0,0.00018345,2]
[334579943,1723271438321,-500.0,0.00018345,2]
[334579944,1723271438330,-500.0,0.00018345,2]
[334579945,1723271438341,-500.0,0.00018345,2]
[334579946,1723271438350,-500.0,0.00018345,2]
[334579947,1723271438359,-500.0,0.00018345,2]
[334579948,1723271438369,-500.0,0.00018345,2]
[334579949,1723271438379,-500.0,0.00018345,2]
[334579950,1723271438390,-500.0,0.00018345,2]
[334579951,1723271438402,-500.0,0.00018345,2]
[334579952,1723271438412,-500.0,0.00018345,2]
[334579953,1723271438422,-500.0,0.00018345,2]
[334579954,1723271438432,-500.0,0.00018345,2]
[334579955,1723271438442,-500.0,0.00018345,2]
[334579956,1723271438451,-500.0,0.00018345,2]
[334579957,1723271438461,-500.0,0.00018345,2]
[334579958,1723271438469,-500.0,0.00018345,2]
[334579959,1723271438480,-500.0,0.00018345,2]
[334579960,1723271438489,-500.0,0.00018345,2]
[334579961,1723271438498,-500.0,0.00018345,2]
[334579962,1723271438508,-500.0,0.00018345,2]
[334579963,1723271438517,-500.0,0.00018345,2]
[334579964,1723271438527,-500.0,0.00018345,2]
[334579965,1723271438537,-500.0,0.00018345,2]
[334579966,1723271438546,-500.0,0.00018345,2]
[334579967,1723271438557,-500.0,0.00018345,2]
[334579968,1723271438566,-500.0,0.00018345,2]
[334579969,1723271438576,-500.0,0.00018345,2]
[334579970,1723271438586,-500.0,0.00018345,2]
[334579971,1723271438596,-500.0,0.00018345,2]
[334579972,1723271438606,-564.64685671,0.00018345,2]
[334579973,1723271438615,-500.0,0.00018345,2]
[334579974,1723271438625,-500.0,0.00018345,2]
[334579975,1723271438636,-151.0,0.00018447,2]
[334579976,1723271438648,-160.54683687,0.00018976,2]
[334579977,1723271438658,-205.73413728,0.00018976,2]
[334579978,1723271438668,-570.42165969,0.00018979,2]
[334579979,1723271438678,-154.79103211,0.00018979,2]
[334579980,1723271438688,-14535.87374275,0.00019125,2]
[334579981,1723271438699,-151.0,0.00019135,2]
[334579982,1723271438709,-151.0,0.00019135,2]
[334579983,1723271438720,-303.352888,0.00019135,2]
[334579984,1723271438731,-303.352888,0.00019135,2]
[334579985,1723271438742,-388.75477,0.00019135,2]
[334579986,1723271438753,-151.0,0.00019135,2]
[334579987,1723271438763,-388.75477,0.00019135,2]
[334579988,1723271438774,-151.0,0.00019135,2]
[334579989,1723271438784,-173.605182,0.00019135,2]
[334579990,1723271438794,-151.581243,0.00019135,2]
[334579991,1723271438803,-173.605182,0.00019135,2]
[334579992,1723271438813,-151.581243,0.00019135,2]
[334579993,1723271438824,-151.0,0.00019136,2]
[334579994,1723271438838,-151.0,0.00019136,2]
[334579995,1723271438847,-303.352888,0.00019136,2]
[334579996,1723271438857,-303.352888,0.00019136,2]
[334579997,1723271438866,-388.75477,0.00019136,2]
[334579998,1723271438878,-151.0,0.00019136,2]
[334579999,1723271438887,-388.75477,0.00019136,2]
[334580000,1723271438898,-206.255944,0.00019136,2]
[334580001,1723271438909,-173.605182,0.00019136,2]
[334580002,1723271438919,-151.581243,0.00019136,2]
[334580003,1723271438930,-173.605182,0.00019136,2]
[334580004,1723271438940,-151.581243,0.00019136,2]
[334580005,1723271438951,-9649.70159836,0.00019139,2]
[334580006,1723271438961,-845.8738942,0.00019155,2]
[334580007,1723271438970,-183.00211227,0.00019155,2]
[334580008,1723271438980,-203.46028037,0.00019167,2]